lending/lending_fUSD_20240507
["ID","MTS","AMOUNT","RATE_DAILY","PERIOD"]
[326596389,1715122262188,-539.31,0.00021643,2]
[326596390,1715122262200,-622.67,0.00021643,2]
[326596391,1715122262211,-500.0,0.00021643,2]
[326596392,1715122262223,-500.0,0.00021643,2]
[326596393,1715122262234,-500.0,0.00021643,2]
[326596394,1715122262246,-694.46,0.00021643,2]
[326596395,1715122262258,-281.22461349,0.00021643,2]
[326596396,1715122262269,-500.0,0.00021643,2]
[326596397,1715122262281,-500.0,0.00021643,2]
[326596398,1715122262292,-690.02,0.00021643,2]
[326596399,1715122262304,-725.56,0.00021643,2]
[326596400,1715122262316,-2665.36,0.00021643,2]
[326596401,1715122262327,-500.0,0.00021643,2]
[326596402,1715122262339,-1103.68,0.00021643,2]
[326596403,1715122262351,-500.0,0.00021643,2]
[326596404,1715122262363,-548.67,0.00021643,2]
[326596405,1715122262374,-1369.86,0.00021643,2]
[326596406,1715122262385,-984.9,0.00021643,2]
[326596407,1715122262396,-348.18275463,0.00021643,2]
[326596408,1715122262408,-599.64,0.00021643,2]
[326596409,1715122262420,-2106.05,0.00021643,2]
[326596410,1715122262432,-500.0,0.00021643,2]
[326596411,1715122262444,-633.24,0.00021643,2]
[326596412,1715122262456,-500.0,0.00021643,2]
[326596413,1715122262468,-500.0,0.00021643,2]
[326596414,1715122262480,-500.0,0.00021643,2]
[326596415,1715122262493,-743.91,0.00021643,2]
[326596416,1715122262505,-532.71,0.00021643,2]
[326596417,1715122262516,-500.0,0.00021643,2]
[326596418,1715122262526,-621.6,0.00021643,2]
[326596419,1715122262535,-1592.2,0.00021643,2]
[326596420,1715122262544,-564.97149637,0.00021643,2]
[326596421,1715122262554,-500.0,0.00021643,2]
[326596422,1715122262564,-706.51,0.00021643,2]
[326596423,1715122262573,-504.35,0.00021643,2]
[326596424,1715122262582,-1399.63,0.00021643,2]
[326596425,1715122262592,-500.0,0.00021643,2]
[326596426,1715122262601,-632.63,0.00021643,2]
[326596427,1715122262611,-500.0,0.00021643,2]
[326596428,1715122262620,-2045.26,0.00021643,2]
[326596429,1715122262630,-3756.12,0.00021643,2]
[326596430,1715122262837,-500.0,0.00021643,2]
[326596431,1715122262861,-500.0,0.00021643,2]
[326596432,1715122262874,-350.49198884,0.00021643,2]
[326596433,1715122262885,-500.0,0.00021643,2]
[326596434,1715122262895,-500.0,0.00021643,2]
[326596435,1715122262905,-500.0,0.00021643,2]
[326596436,1715122262914,-527.77,0.00021643,2]
[326596437,1715122262924,-500.0,0.00021643,2]
[326596438,1715122262933,-1259.0,0.0002179,2]
[326596439,1715122262943,-5906.0,0.0002179,2]
[326596440,1715122262952,-5738.0,0.0002179,2]
[326596441,1715122262963,-288.0,0.0002179,2]
[326596442,1715122262973,-1058.0,0.0002179,2]
[326596443,1715122262982,-152.0,0.00021796,3]
[326596444,1715122262992,-12828.58719339,0.000219,2]
[326596445,1715122263002,-6972.50991768,0.000219,2]
[326596446,1715122263011,-517.96,0.000219,2]
[326596447,1715122263020,-154.56889863,0.0002191,2]
[326596448,1715122263030,-500.0,0.00021917,2]
[326596449,1715122263039,-500.0,0.00021917,2]
[326596450,1715122263048,-381.40020579,0.00021917,2]
[326596451,1715122263059,-500.0,0.00021917,2]
[326596452,1715122263069,-500.0,0.00021917,2]
[326596453,1715122263078,-500.0,0.00021917,2]
[326596454,1715122263087,-500.0,0.00021917,2]
[326596455,1715122263097,-500.0,0.00021917,2]
[326596456,1715122263106,-500.0,0.00021917,2]
[326596457,1715122263116,-500.0,0.00021917,2]
[326596458,1715122263125,-1192.99,0.00021917,2]
[326596459,1715122263136,-500.0,0.00021917,2]
[326596460,1715122263145,-554.98,0.00021917,2]
[326596461,1715122263154,-500.0,0.00021917,2]
[326596462,1715122263164,-500.0,0.00021917,2]
[326596463,1715122263174,-539.31,0.00021917,2]
[326596464,1715122263183,-622.67,0.00021917,2]
[326596465,1715122263192,-500.0,0.00021917,2]
[326596466,1715122263202,-500.0,0.00021917,2]
[326596467,1715122263212,-500.0,0.00021917,2]
[326596468,1715122263222,-694.46,0.00021917,2]
[326596469,1715122263231,-500.0,0.00021917,2]
[326596470,1715122263241,-500.0,0.00021917,2]
[326596471,1715122263252,-690.02,0.00021917,2]
[326596472,1715122263262,-725.56,0.00021917,2]
[326596473,1715122263272,-2665.36,0.00021917,2]
[326596474,1715122263282,-1103.68,0.00021917,2]
[326596475,1715122263291,-500.0,0.00021917,2]
[326596476,1715122263301,-500.0,0.00021917,2]
[326596477,1715122263311,-548.67,0.00021917,2]
[326596478,1715122263321,-1369.86,0.00021917,2]
[326596479,1715122263330,-984.9,0.00021917,2]
[326596480,1715122263340,-599.64,0.00021917,2]
[326596481,1715122263350,-2106.05,0.00021917,2]
[326596482,1715122263360,-500.0,0.00021917,2]
[326596483,1715122263370,-633.24,0.00021917,2]
[326596484,1715122263380,-500.0,0.00021917,2]
[326596485,1715122263390,-500.0,0.00021917,2]
[326596486,1715122263400,-169.01564532,0.00021917,2]
[326596487,1715122263410,-743.91,0.00021917,2]
[326596488,1715122263420,-532.71,0.00021917,2]
[326596489,1715122263429,-500.0,0.00021917,2]
[326596490,1715122263440,-621.6,0.00021917,2]
[326596491,1715122263450,-1592.2,0.00021917,2]
[326596492,1715122263460,-500.0,0.00021917,2]
[326596493,1715122263470,-706.51,0.00021917,2]
[326596494,1715122263480,-504.35,0.00021917,2]
[326596495,1715122263490,-500.0,0.00021917,2]
[326596496,1715122263500,-632.63,0.00021917,2]
[326596497,1715122263509,-202.36527148,0.00021917,2]
[326596498,1715122263523,-2045.26,0.00021917,2]
[326596499,1715122263534,-3756.12,0.00021917,2]
[326596500,1715122263544,-500.0,0.00021917,2]
[326596501,1715122263553,-500.0,0.00021917,2]
[326596502,1715122263563,-500.0,0.00021917,2]
[326596503,1715122263573,-500.0,0.00021917,2]
[326596504,1715122263582,-500.0,0.00021917,2]
[326596505,1715122263592,-527.77,0.00021917,2]
[326596506,1715122263602,-500.0,0.00021917,2]
[326596507,1715122263611,-250.0,0.00021918,2]
[326596508,1715122263620,-250.0,0.00021918,2]
[326596509,1715122263631,-2000.0,0.00021918,2]
[326596510,1715122263640,-1000.0,0.00021949,2]
[326596511,1715122263650,-150.7,0.00021981,5]
[326596512,1715122263659,-150.5,0.0002199,15]
[326596513,1715122263668,-164842.70754092,0.00022,2]
[326596514,1715122263941,-255.22007357,0.00012964,2]
[326596515,1715122263950,-668.96438155,0.00012964,2]
[326596516,1715122263962,-409.987,0.00012964,2]
[326596517,1715122263973,-2276.05137827,0.00012964,2]
[326596518,1715122263983,-916.47227892,0.00012998,2]
[326596519,1715122263992,-2450.46511415,0.00022,2]
[326596520,1715122264004,-2164.552005,0.00022,2]
[326596521,1715122264016,-6919.15590221,0.00022,2]
[326596522,1715122264027,-433.003431,0.00022,2]
[326596523,1715122264038,-1098.81,0.00022,2]
[326596524,1715122264050,-153150.62939047,0.00022,2]
[326596525,1715122264062,-513.18500005,0.00022,2]
[326596526,1715122264197,-916.47227892,0.0001303,2]
[326596527,1715122264206,-173.88072108,0.0001788,2]
[326596528,1715122264217,-823.7291817,0.0001788,2]
[326596529,1715122264227,-655.8033183,0.00022,2]
[326596531,1715122294683,193298.14413486,6.94e-05,2]
[326596537,1715123015454,23195.79246479,0.00025,120]
[326596539,1715123434271,-253.052,0.0001253,2]
[326596543,1715123434286,-110.76607592,0.0001253,2]
[326596545,1715123434296,-4271.31667855,0.0001253,2]
[326596547,1715123434307,-1052.05964256,0.00012531,2]
[326596549,1715123434319,-711.54040194,0.00012532,2]
[326596551,1715123434330,-685.23241035,0.00012533,2]
[326596553,1715123434341,-153.23257464,0.00012539,2]
[326596556,1715123434352,-491.6694,0.00012742,2]
[326596558,1715123434362,-150.0,0.00012897,2]
[326596560,1715123434373,-153.23257449,0.00012934,2]
[326596562,1715123434383,-310.2458675,0.00012963,2]
[326596564,1715123434394,-1996.07873679,0.00012963,2]
[326596566,1715123434405,-679.09131649,0.00012963,2]
[326596568,1715123434415,-676.23,0.00012963,2]
[326596570,1715123434425,-155.0,0.00012964,2]
[326596572,1715123434436,-1316.84,0.00013324,2]
[326596574,1715123434446,-150.99,0.00013324,2]
[326596576,1715123434456,-153.23257449,0.00013329,2]
[326596578,1715123434466,-153.23257449,0.00013724,2]
[326596580,1715123434477,-153.23257449,0.00014119,2]
[326596582,1715123434487,-499.99,0.00014249,2]
[326596584,1715123434500,-150.99,0.00014249,2]
[326596586,1715123434510,-725.57,0.00014249,2]
[326596588,1715123434522,-153.23257449,0.00014513,2]
[326596590,1715123434532,-153.23257449,0.00014908,2]
[326596592,1715123434543,-307.0,0.00015173,2]
[326596594,1715123434554,-153.23257449,0.00015303,2]
[326596596,1715123434564,-153.23257449,0.00015698,2]
[326596598,1715123434574,-177.33,0.00015863,2]
[326596600,1715123434585,-150.0,0.00015892,2]
[326596603,1715123434596,-2819.83,0.00016008,2]
[326596604,1715123434607,-177.33,0.00016069,2]
[326596606,1715123434617,-153.23257449,0.00016093,2]
[326596608,1715123434628,-742.0,0.000162,2]
[326596610,1715123434639,-500.0,0.00016221,2]
[326596613,1715123434649,-150.0,0.00016244,2]
[326596615,1715123434659,-177.33,0.00016276,2]
[326596617,1715123434670,-285.93,0.00016342,2]
[326596619,1715123434680,-200.0,0.00016419,2]
[326596621,1715123434690,-250.0,0.00016445,2]
[326596623,1715123434700,-771.31,0.00016459,2]
[326596625,1715123434710,-251.19245496,0.00016463,2]
[326596627,1715123434720,-177.33,0.00016483,2]
[326596629,1715123434730,-153.23257449,0.00016488,2]
[326596631,1715123434739,-155.52459272,0.00016523,2]
[326596633,1715123434752,-163.74808073,0.00016531,2]
[326596635,1715123434763,-200.91,0.0001658,2]
[326596637,1715123434773,-250.0,0.00016604,2]
[326596639,1715123434783,-427.85730046,0.00016621,2]
[326596641,1715123434794,-182.85476164,0.00016629,2]
[326596642,1715123434804,-1243.3075394,0.00016629,2]
[326596644,1715123434814,-1104.45996726,0.0001663,2]
[326596646,1715123434825,-400.95363293,0.0001663,2]
[326596648,1715123434835,-23900.0,0.00016631,2]
[326596651,1715123434846,-195.81,0.00016659,2]
[326596652,1715123434855,-200.0,0.00016661,2]
[326596655,1715123434865,-169.73,0.00016687,2]
[326596657,1715123434875,-177.33,0.00016689,2]
[326596659,1715123434885,-153.23257449,0.00016883,2]
[326596660,1715123434894,-166.05,0.00017183,2]
[326596661,1715123434905,-166.05,0.00017269,2]
[326596662,1715123434915,-153.23257449,0.00017278,2]
[326596663,1715123434925,-167.78,0.00017495,2]
[326596664,1715123434936,-153.23257449,0.00017672,2]
[326596665,1715123434946,-153.23257449,0.00018067,2]
[326596666,1715123434956,-153.23257449,0.00018462,2]
[326596667,1715123434973,-153.23257449,0.00018857,2]
[326596668,1715123434983,-197.46,0.00018885,2]
[326596669,1715123434997,-155.0,0.00019,2]
[326596670,1715123435008,-7513.6775,0.00019078,2]
[326596671,1715123435019,-300.0,0.00019078,2]
[326596672,1715123435030,-3573.7762,0.00019078,2]
[326596673,1715123435040,-159.95281396,0.00019152,2]
[326596674,1715123435050,-598.56594174,0.00019152,2]
[326596675,1715123435061,-210.317,0.00019152,2]
[326596676,1715123435071,-2905.8173,0.00019152,2]
[326596677,1715123435081,-1000.0,0.00019152,2]
[326596678,1715123435091,-2500.0,0.00019152,2]
[326596679,1715123435102,-500.0,0.00019178,2]
[326596680,1715123435112,-591.74,0.00019178,2]
[326596681,1715123435122,-500.0,0.00019178,2]
[326596682,1715123435133,-500.0,0.00019178,2]
[326596683,1715123435143,-500.0,0.00019178,2]
[326596684,1715123435154,-500.0,0.00019178,2]
[326596685,1715123435165,-500.0,0.00019178,2]
[326596686,1715123435177,-586.88,0.00019178,2]
[326596687,1715123435191,-500.0,0.00019178,2]
[326596688,1715123435201,-500.0,0.00019178,2]
[326596689,1715123435211,-500.0,0.00019178,2]
[326596690,1715123435222,-559.99,0.00019178,2]
[326596691,1715123435233,-500.0,0.00019178,2]
[326596692,1715123435243,-500.0,0.00019178,2]
[326596693,1715123435256,-500.0,0.00019178,2]
[326596694,1715123435268,-500.0,0.00019178,2]
[326596695,1715123435280,-500.0,0.00019178,2]
[326596696,1715123435290,-579.36,0.00019178,2]
[326596697,1715123435300,-500.0,0.00019178,2]
[326596698,1715123435310,-524.63852886,0.00019178,2]
[326596699,1715123435321,-500.0,0.00019178,2]
[326596700,1715123435331,-500.0,0.00019178,2]
[326596701,1715123435341,-500.0,0.00019178,2]
[326596702,1715123435352,-552.01808102,0.00019178,2]
[326596703,1715123435363,-500.0,0.00019178,2]
[326596704,1715123435373,-646.69,0.00019178,2]
[326596705,1715123435384,-500.0,0.00019178,2]
[326596706,1715123435394,-500.0,0.00019178,2]
[326596707,1715123435405,-500.0,0.00019178,2]
[326596708,1715123435415,-500.0,0.00019178,2]
[326596709,1715123435425,-500.0,0.00019178,2]
[326596710,1715123435435,-500.0,0.00019178,2]
[326596711,1715123435446,-500.0,0.00019178,2]
[326596712,1715123435456,-599.96,0.00019178,2]
[326596713,1715123435467,-500.0,0.00019178,2]
[326596714,1715123435478,-500.0,0.00019178,2]
[326596715,1715123435488,-500.0,0.00019178,2]
[326596716,1715123435501,-500.0,0.00019178,2]
[326596717,1715123435512,-500.0,0.00019178,2]
[326596718,1715123435522,-500.0,0.00019178,2]
[326596719,1715123435533,-500.0,0.00019178,2]
[326596720,1715123435543,-500.0,0.00019178,2]
[326596721,1715123435558,-500.0,0.00019178,2]
[326596722,1715123435569,-500.0,0.00019178,2]
[326596723,1715123435579,-500.0,0.00019178,2]
[326596724,1715123435590,-500.0,0.00019178,2]
[326596725,1715123435601,-500.0,0.00019178,2]
[326596726,1715123435611,-500.0,0.00019178,2]
[326596727,1715123435621,-500.0,0.00019178,2]
[326596728,1715123435631,-500.0,0.00019178,2]
[326596729,1715123435641,-622.52,0.00019178,2]
[326596730,1715123435652,-500.0,0.00019178,2]
[326596731,1715123435663,-500.0,0.00019178,2]
[326596732,1715123435673,-500.0,0.00019178,2]
[326596733,1715123435684,-500.0,0.00019178,2]
[326596734,1715123435695,-210.81,0.00019178,2]
[326596735,1715123435705,-500.0,0.00019178,2]
[326596736,1715123435716,-500.0,0.00019178,2]
[326596737,1715123435726,-500.0,0.00019178,2]
[326596738,1715123435746,-602.35,0.00019178,2]
[326596739,1715123435760,-604.76,0.00019178,2]
[326596740,1715123435771,-500.0,0.00019178,2]
[326596741,1715123435782,-556.85647417,0.00019178,2]
[326596742,1715123435792,-498.47393157,0.00019178,2]
[326596743,1715123435803,-500.0,0.00019178,2]
[326596744,1715123435813,-506.19963109,0.00019178,2]
[326596745,1715123435824,-500.0,0.00019178,2]
[326596746,1715123435835,-500.0,0.00019178,2]
[326596747,1715123435847,-500.0,0.00019178,2]
[326596748,1715123435858,-520.06709658,0.00019178,2]
[326596749,1715123435869,-500.0,0.00019178,2]
[326596750,1715123435879,-500.0,0.00019178,2]
[326596751,1715123435890,-500.0,0.00019178,2]
[326596752,1715123435901,-500.0,0.00019178,2]
[326596753,1715123435911,-500.0,0.00019178,2]
[326596754,1715123435922,-500.0,0.00019178,2]
[326596755,1715123435933,-500.0,0.00019178,2]
[326596756,1715123435944,-500.0,0.00019178,2]
[326596757,1715123435955,-500.0,0.00019178,2]
[326596758,1715123435970,-500.0,0.00019178,2]
[326596759,1715123435982,-500.0,0.00019178,2]
[326596760,1715123435993,-500.0,0.00019178,2]
[326596761,1715123436007,-500.0,0.00019178,2]
[326596762,1715123436018,-500.0,0.00019178,2]
[326596763,1715123436029,-500.0,0.00019178,2]
[326596764,1715123436040,-500.0,0.00019178,2]
[326596765,1715123436051,-500.0,0.00019178,2]
[326596766,1715123436062,-500.0,0.00019178,2]
[326596767,1715123436074,-500.0,0.00019178,2]
[326596768,1715123436085,-500.0,0.00019178,2]
[326596769,1715123436096,-500.0,0.00019178,2]
[326596770,1715123436107,-500.0,0.00019178,2]
[326596771,1715123436119,-154.67,0.00019178,2]
[326596772,1715123436131,-289.24,0.00019178,2]
[326596773,1715123436142,-3876.01243216,0.000192,2]
[326596774,1715123436154,-500.0,0.00019251,2]
[326596775,1715123436169,-500.0,0.00019251,2]
[326596776,1715123436179,-500.0,0.00019251,2]
[326596777,1715123436190,-500.0,0.00019251,2]
[326596778,1715123436201,-500.0,0.00019251,2]
[326596779,1715123436215,-1107.85,0.00019251,2]
[326596780,1715123436226,-500.0,0.00019251,2]
[326596781,1715123436237,-199.7597154,0.00019252,2]
[326596782,1715123436249,-153.23257449,0.00019252,2]
[326596783,1715123436260,-5334.0655,0.00019252,2]
[326596784,1715123436271,-99929.9553,0.00019252,2]
[326596785,1715123436282,-4875.4922,0.00019252,2]
[326596786,1715123436293,-7500.0,0.00019252,2]
[326596787,1715123436305,-500.0,0.00019351,2]
[326596788,1715123436315,-500.0,0.00019351,2]
[326596789,1715123436326,-500.0,0.00019351,2]
[326596790,1715123436337,-500.0,0.00019351,2]
[326596791,1715123436348,-500.0,0.00019351,2]
[326596792,1715123436359,-500.0,0.00019351,2]
[326596793,1715123436369,-500.0,0.00019351,2]
[326596794,1715123436380,-500.0,0.00019351,2]
[326596795,1715123436390,-500.0,0.00019351,2]
[326596796,1715123436400,-500.0,0.00019351,2]
[326596797,1715123436411,-644.6320701,0.00019351,2]
[326596798,1715123436421,-500.0,0.00019351,2]
[326596799,1715123436431,-633.11,0.00019351,2]
[326596800,1715123436442,-500.0,0.00019351,2]
[326596801,1715123436453,-500.0,0.00019351,2]
[326596802,1715123436463,-500.0,0.00019351,2]
[326596803,1715123436475,-500.0,0.00019351,2]
[326596804,1715123436485,-500.0,0.00019351,2]
[326596805,1715123436499,-377.05769271,0.00019351,2]
[326596806,1715123436509,-628.97,0.00019351,2]
[326596807,1715123436520,-150.0,0.00019351,2]
[326596808,1715123436531,-500.0,0.00019351,2]
[326596809,1715123436542,-500.0,0.00019351,2]
[326596810,1715123436552,-500.0,0.00019351,2]
[326596811,1715123436563,-500.0,0.00019351,2]
[326596812,1715123436574,-519.72,0.00019351,2]
[326596813,1715123436585,-500.0,0.00019351,2]
[326596814,1715123436596,-513.88,0.00019351,2]
[326596815,1715123436606,-500.0,0.00019351,2]
[326596816,1715123436618,-500.0,0.00019351,2]
[326596817,1715123436628,-500.0,0.00019351,2]
[326596818,1715123436640,-500.0,0.00019351,2]
[326596819,1715123436650,-500.0,0.00019351,2]
[326596820,1715123436661,-500.0,0.00019351,2]
[326596821,1715123436672,-500.0,0.00019351,2]
[326596822,1715123436682,-500.0,0.00019351,2]
[326596823,1715123436693,-500.0,0.00019351,2]
[326596824,1715123436703,-500.0,0.00019351,2]
[326596825,1715123436714,-500.0,0.00019351,2]
[326596826,1715123436724,-500.0,0.00019351,2]
[326596827,1715123436734,-500.0,0.00019351,2]
[326596828,1715123436745,-500.0,0.00019351,2]
[326596829,1715123436759,-500.0,0.00019351,2]
[326596830,1715123436769,-500.0,0.00019351,2]
[326596831,1715123436779,-500.0,0.00019351,2]
[326596832,1715123436789,-500.0,0.00019351,2]
[326596833,1715123436799,-500.0,0.00019351,2]
[326596834,1715123436810,-500.0,0.00019351,2]
[326596835,1715123436820,-500.0,0.00019351,2]
[326596836,1715123436831,-500.0,0.00019351,2]
[326596837,1715123436842,-500.0,0.00019351,2]
[326596838,1715123436852,-500.0,0.00019351,2]
[326596839,1715123436863,-500.0,0.00019351,2]
[326596840,1715123436873,-500.0,0.00019351,2]
[326596841,1715123436884,-500.0,0.00019351,2]
[326596842,1715123436894,-500.0,0.00019351,2]
[326596843,1715123436905,-500.0,0.00019351,2]
[326596844,1715123436916,-500.0,0.00019351,2]
[326596845,1715123436926,-646.21,0.00019351,2]
[326596846,1715123436937,-597.83,0.00019351,2]
[326596847,1715123436948,-500.0,0.00019351,2]
[326596848,1715123436959,-500.0,0.00019351,2]
[326596849,1715123436975,-500.0,0.00019351,2]
[326596850,1715123436986,-500.0,0.00019351,2]
[326596851,1715123437000,-508.38029609,0.00019351,2]
[326596852,1715123437012,-500.0,0.00019351,2]
[326596853,1715123437022,-500.0,0.00019351,2]
[326596854,1715123437033,-500.0,0.00019351,2]
[326596855,1715123437043,-249.3599052,0.00019351,2]
[326596856,1715123437054,-500.0,0.00019351,2]
[326596857,1715123437064,-500.0,0.00019351,2]
[326596858,1715123437075,-500.0,0.00019351,2]
[326596859,1715123437086,-500.0,0.00019351,2]
[326596860,1715123437097,-635.25,0.00019351,2]
[326596861,1715123437108,-500.0,0.00019351,2]
[326596862,1715123437119,-489.8580573,0.00019351,2]
[326596863,1715123437129,-500.0,0.00019351,2]
[326596864,1715123437140,-500.0,0.00019351,2]
[326596865,1715123437151,-500.0,0.00019351,2]
[326596866,1715123437164,-500.0,0.00019351,2]
[326596867,1715123437176,-742.01,0.00019351,2]
[326596868,1715123437187,-500.0,0.00019351,2]
[326596869,1715123437197,-500.0,0.00019351,2]
[326596870,1715123437208,-533.49,0.00019351,2]
[326596871,1715123437218,-416.7,0.00019351,2]
[326596872,1715123437229,-228.45,0.00019351,2]
[326596873,1715123437239,-500.0,0.00019351,2]
[326596874,1715123437255,-589.55665977,0.00019351,2]
[326596875,1715123437265,-500.0,0.00019351,2]
[326596876,1715123437276,-500.0,0.00019351,2]
[326596877,1715123437286,-862.44,0.00019351,2]
[326596878,1715123437297,-500.0,0.00019351,2]
[326596879,1715123437307,-500.0,0.00019351,2]
[326596880,1715123437318,-500.0,0.00019351,2]
[326596881,1715123437329,-500.0,0.00019351,2]
[326596882,1715123437339,-500.0,0.00019351,2]
[326596883,1715123437350,-500.0,0.00019351,2]
[326596884,1715123437361,-500.0,0.00019351,2]
[326596885,1715123437371,-593.37356892,0.00019351,2]
[326596886,1715123437381,-500.0,0.00019351,2]
[326596887,1715123437392,-500.0,0.00019351,2]
[326596888,1715123437402,-500.0,0.00019351,2]
[326596889,1715123437412,-500.0,0.00019351,2]
[326596890,1715123437421,-500.0,0.00019351,2]
[326596891,1715123437432,-500.0,0.00019351,2]
[326596892,1715123437443,-500.0,0.00019351,2]
[326596893,1715123437452,-500.0,0.00019351,2]
[326596894,1715123437463,-500.0,0.00019351,2]
[326596895,1715123437474,-500.0,0.00019351,2]
[326596896,1715123437483,-500.0,0.00019351,2]
[326596897,1715123437493,-336.18691555,0.00019351,2]
[326596898,1715123437506,-500.0,0.00019351,2]
[326596899,1715123437517,-500.0,0.00019351,2]
[326596900,1715123437527,-500.0,0.00019351,2]
[326596901,1715123437538,-500.0,0.00019351,2]
[326596902,1715123437548,-500.0,0.00019351,2]
[326596903,1715123437558,-500.0,0.00019351,2]
[326596904,1715123437569,-500.0,0.00019351,2]
[326596905,1715123437583,-500.0,0.00019351,2]
[326596906,1715123437594,-500.0,0.00019351,2]
[326596907,1715123437604,-500.0,0.00019351,2]
[326596908,1715123437614,-500.0,0.00019351,2]
[326596909,1715123437624,-500.0,0.00019351,2]
[326596910,1715123437634,-1443.74,0.00019351,2]
[326596911,1715123437644,-500.0,0.00019351,2]
[326596912,1715123437654,-500.0,0.00019351,2]
[326596913,1715123437664,-500.0,0.00019351,2]
[326596914,1715123437675,-2034.57,0.00019351,2]
[326596915,1715123437685,-500.0,0.00019351,2]
[326596916,1715123437695,-500.0,0.00019351,2]
[326596917,1715123437915,-537.89,0.00019351,2]
[326596918,1715123437926,-500.0,0.00019351,2]
[326596919,1715123437936,-500.0,0.00019351,2]
[326596920,1715123437948,-500.0,0.00019351,2]
[326596921,1715123437958,-500.0,0.00019351,2]
[326596922,1715123437970,-500.0,0.00019351,2]
[326596923,1715123437982,-500.0,0.00019351,2]
[326596924,1715123437993,-500.0,0.00019351,2]
[326596925,1715123438006,-500.0,0.00019351,2]
[326596926,1715123438016,-500.0,0.00019351,2]
[326596927,1715123438026,-500.0,0.00019351,2]
[326596928,1715123438036,-500.0,0.00019351,2]
[326596929,1715123438047,-500.0,0.00019351,2]
[326596930,1715123438057,-500.0,0.00019351,2]
[326596931,1715123438068,-581.84,0.00019351,2]
[326596932,1715123438079,-500.0,0.00019351,2]
[326596933,1715123438089,-500.0,0.00019351,2]
[326596934,1715123438100,-500.0,0.00019351,2]
[326596935,1715123438110,-500.0,0.00019351,2]
[326596936,1715123438120,-500.0,0.00019351,2]
[326596937,1715123438131,-200.9876085,0.00019351,2]
[326596938,1715123438141,-1140.78,0.00019351,2]
[326596939,1715123438152,-500.0,0.00019351,2]
[326596940,1715123438163,-500.0,0.00019351,2]
[326596941,1715123438175,-500.0,0.00019351,2]
[326596942,1715123438189,-500.0,0.00019351,2]
[326596943,1715123438200,-500.0,0.00019351,2]
[326596944,1715123438211,-500.0,0.00019351,2]
[326596945,1715123438221,-500.0,0.00019351,2]
[326596946,1715123438231,-500.0,0.00019351,2]
[326596947,1715123438241,-500.0,0.00019351,2]
[326596948,1715123438254,-500.0,0.00019351,2]
[326596949,1715123438266,-500.0,0.00019351,2]
[326596950,1715123438276,-500.0,0.00019351,2]
[326596951,1715123438286,-500.0,0.00019351,2]
[326596952,1715123438296,-500.0,0.00019351,2]
[326596953,1715123438306,-645.0046332,0.00019351,2]
[326596954,1715123438316,-500.0,0.00019351,2]
[326596955,1715123438327,-500.0,0.00019351,2]
[326596956,1715123438337,-1092.43599998,0.00019352,2]
[326596957,1715123438347,-39111.2713,0.00019352,2]